[Event "December 12 Early 2023"]
[Site "https://www.chess.com"]
[Date "2023.12.12"]
[Round "9"]
[White "Belov, Alexei"]
[Black "Goldin, Roman"]
[Result "1-0"]
[Board "81"]
[TimeControl "180+1"]
[WhiteFideId "4128206"]
[BlackFideId "2803860"]
[WhiteElo "2573"]
[BlackElo "2443"]
[WhiteTeam "RUS"]
[BlackTeam "ISR"]
[WhiteClock "0:00:17"]
[BlackClock "0:00:10"]

1. e4 {[%clk 0:03:00]}  Nc6 {[%clk 0:02:58]} 2. Nf3 {[%clk 0:03:00]}  e5 {[%clk 0:02:55]} 3. Bb5 {[%clk 0:03:00]}  a6 {[%clk 0:02:55]} 4. Ba4 {[%clk 0:03:00]}  d6 {[%clk 0:02:54]} 5. c3 {[%clk 0:03:00]}  Bd7 {[%clk 0:02:54]} 6. d4 {[%clk 0:03:00]}  Nge7 {[%clk 0:02:54]} 7. O-O {[%clk 0:02:59]}  Ng6 {[%clk 0:02:54]} 8. Nbd2 {[%clk 0:02:35]}  Be7 {[%clk 0:02:53]} 9. d5 {[%clk 0:02:31]}  Nb8 {[%clk 0:02:52]} 10. Bxd7+ {[%clk 0:02:31]}  Nxd7 {[%clk 0:02:52]} 11. Nc4 {[%clk 0:02:31]}  Nh4 {[%clk 0:02:45]} 12. Ne3 {[%clk 0:02:13]}  O-O {[%clk 0:02:36]} 13. Nxh4 {[%clk 0:02:12]}  Bxh4 {[%clk 0:02:36]} 14. Nf5 {[%clk 0:02:12]}  Bf6 {[%clk 0:02:20]} 15. Qg4 {[%clk 0:02:06]}  g6 {[%clk 0:02:17]} 16. Be3 {[%clk 0:01:46]}  Kh8 {[%clk 0:02:06]} 17. Nh6 {[%clk 0:01:44]}  Bg7 {[%clk 0:02:00]} 18. Qh3 {[%clk 0:01:30]}  Qe7 {[%clk 0:01:53]} 19. c4 {[%clk 0:01:28]}  b6 {[%clk 0:01:52]} 20. b4 {[%clk 0:01:27]}  a5 {[%clk 0:01:53]} 21. a3 {[%clk 0:01:28]}  Nf6 {[%clk 0:01:46]} 22. f3 {[%clk 0:01:25]}  Nh5 {[%clk 0:01:46]} 23. g3 {[%clk 0:01:09]}  Ra7 {[%clk 0:01:18]} 24. Nf5 {[%clk 0:01:08]}  gxf5 {[%clk 0:01:15]} 25. Qxh5 {[%clk 0:01:08]}  f4 {[%clk 0:01:15]} 26. Bd2 {[%clk 0:00:57]}  a4 {[%clk 0:01:05]} 27. gxf4 {[%clk 0:00:48]}  exf4 {[%clk 0:01:04]} 28. Rad1 {[%clk 0:00:48]}  Be5 {[%clk 0:01:02]} 29. Kh1 {[%clk 0:00:45]}  Raa8 {[%clk 0:01:01]} 30. Rg1 {[%clk 0:00:44]}  Rg8 {[%clk 0:01:00]} 31. Qf5 {[%clk 0:00:33]}  Rg6 {[%clk 0:00:40]} 32. Bxf4 {[%clk 0:00:31]}  Rag8 {[%clk 0:00:33]} 33. Bxe5+ {[%clk 0:00:29]}  dxe5 {[%clk 0:00:32]} 34. Rg4 {[%clk 0:00:25]}  Rxg4 {[%clk 0:00:31]} 35. fxg4 {[%clk 0:00:25]}  Rg5 {[%clk 0:00:31]} 36. Qf3 {[%clk 0:00:24]}  f6 {[%clk 0:00:29]} 37. Rf1 {[%clk 0:00:20]}  Kg7 {[%clk 0:00:28]} 38. h4 {[%clk 0:00:19]}  Rg6 {[%clk 0:00:28]} 39. Qf5 {[%clk 0:00:19]}  h6 {[%clk 0:00:25]} 40. Kh2 {[%clk 0:00:19]}  Qf7 {[%clk 0:00:25]} 41. Kh3 {[%clk 0:00:19]}  Qe7 {[%clk 0:00:25]} 42. c5 {[%clk 0:00:16]}  bxc5 {[%clk 0:00:24]} 43. bxc5 {[%clk 0:00:16]}  Qxc5 {[%clk 0:00:25]} 44. h5 {[%clk 0:00:17]}  Qe3+ {[%clk 0:00:24]} 45. Rf3 {[%clk 0:00:17]}  Qxf3+ {[%clk 0:00:14]} 46. Qxf3 {[%clk 0:00:17]}  Rg5 {[%clk 0:00:10]} 47. Qc3 {[%clk 0:00:17]} 1-0

[Event "December 12 Early 2023"]
[Site "https://www.chess.com"]
[Date "2023.12.12"]
[Round "9"]
[White "Mazurkiewicz, Michal"]
[Black "Martinez Fernandez, Adrian"]
[Result "1-0"]
[Board "82"]
[TimeControl "180+1"]
[WhiteFideId "1124943"]
[BlackFideId "32049048"]
[WhiteElo "2442"]
[BlackElo "2544"]
[WhiteTeam "POL"]
[BlackTeam "ESP"]
[WhiteClock "0:00:07"]
[BlackClock "0:00:00"]

1. e4 {[%clk 0:02:59]}  c6 {[%clk 0:02:55]} 2. d3 {[%clk 0:02:59]}  g6 {[%clk 0:02:55]} 3. Nf3 {[%clk 0:02:59]}  Bg7 {[%clk 0:02:56]} 4. g3 {[%clk 0:02:59]}  h5 {[%clk 0:02:55]} 5. Bg2 {[%clk 0:02:59]}  a5 {[%clk 0:02:55]} 6. O-O {[%clk 0:02:57]}  a4 {[%clk 0:02:54]} 7. c3 {[%clk 0:02:54]}  d6 {[%clk 0:02:54]} 8. d4 {[%clk 0:02:54]}  Bg4 {[%clk 0:02:44]} 9. h3 {[%clk 0:02:54]}  Bd7 {[%clk 0:02:42]} 10. e5 {[%clk 0:02:50]}  Qc8 {[%clk 0:02:32]} 11. Kh2 {[%clk 0:02:50]}  Nh6 {[%clk 0:02:20]} 12. exd6 {[%clk 0:02:46]}  exd6 {[%clk 0:02:21]} 13. Re1+ {[%clk 0:02:44]}  Kf8 {[%clk 0:02:20]} 14. Bg5 {[%clk 0:02:36]}  Nf5 {[%clk 0:02:16]} 15. Nbd2 {[%clk 0:02:19]}  Kg8 {[%clk 0:02:05]} 16. Ne4 {[%clk 0:02:18]}  Ra5 {[%clk 0:02:01]} 17. Nf6+ {[%clk 0:02:18]}  Kf8 {[%clk 0:01:44]} 18. Qe2 {[%clk 0:02:17]}  Bh6 {[%clk 0:01:32]} 19. Bxh6+ {[%clk 0:01:55]}  Rxh6 {[%clk 0:01:32]} 20. Kg1 {[%clk 0:01:54]}  Kg7 {[%clk 0:01:31]} 21. Ne8+ {[%clk 0:01:39]}  Bxe8 {[%clk 0:01:19]} 22. Qxe8 {[%clk 0:01:40]}  Rh8 {[%clk 0:01:19]} 23. Qe2 {[%clk 0:01:20]}  Na6 {[%clk 0:01:15]} 24. h4 {[%clk 0:01:19]}  Nc7 {[%clk 0:01:12]} 25. Bh3 {[%clk 0:01:18]}  Re8 {[%clk 0:01:12]} 26. Qc2 {[%clk 0:01:15]}  Rxe1+ {[%clk 0:01:01]} 27. Rxe1 {[%clk 0:01:16]}  Kf8 {[%clk 0:01:01]} 28. c4 {[%clk 0:01:14]}  Nxd4 {[%clk 0:00:52]} 29. Nxd4 {[%clk 0:01:11]}  Qxh3 {[%clk 0:00:51]} 30. Qd2 {[%clk 0:01:07]}  Re5 {[%clk 0:00:24]} 31. Rxe5 {[%clk 0:01:07]}  dxe5 {[%clk 0:00:25]} 32. Nf3 {[%clk 0:01:07]}  Qe6 {[%clk 0:00:15]} 33. Qb4+ {[%clk 0:00:51]}  Kg7 {[%clk 0:00:13]} 34. Qxb7 {[%clk 0:00:51]}  Ne8 {[%clk 0:00:13]} 35. Qb4 {[%clk 0:00:45]}  e4 {[%clk 0:00:12]} 36. Ng5 {[%clk 0:00:45]}  Qe5 {[%clk 0:00:09]} 37. Qe1 {[%clk 0:00:21]}  Nd6 {[%clk 0:00:10]} 38. b3 {[%clk 0:00:17]}  axb3 {[%clk 0:00:10]} 39. axb3 {[%clk 0:00:18]}  f6 {[%clk 0:00:10]} 40. Nf3 {[%clk 0:00:19]}  exf3 {[%clk 0:00:10]} 41. Qd1 {[%clk 0:00:15]}  c5 {[%clk 0:00:04]} 42. Qxf3 {[%clk 0:00:15]}  Nf5 {[%clk 0:00:04]} 43. Qb7+ {[%clk 0:00:15]}  Qe7 {[%clk 0:00:04]} 44. Qd5 {[%clk 0:00:14]}  Nd4 {[%clk 0:00:04]} 45. Kg2 {[%clk 0:00:13]}  g5 {[%clk 0:00:03]} 46. b4 {[%clk 0:00:12]}  g4 {[%clk 0:00:03]} 47. bxc5 {[%clk 0:00:12]}  Nf3 {[%clk 0:00:03]} 48. Qxh5 {[%clk 0:00:12]}  Qe6 {[%clk 0:00:01]} 49. c6 {[%clk 0:00:11]}  Qe4 {[%clk 0:00:00]} 50. Qd5 {[%clk 0:00:07]} 1-0

[Event "December 12 Early 2023"]
[Site "https://www.chess.com"]
[Date "2023.12.12"]
[Round "9"]
[White "yaguigor"]
[Black "Eilers, Stefan"]
[Result "1-0"]
[Board "85"]
[TimeControl "180+1"]
[BlackFideId "4609565"]
[WhiteElo "2437"]
[BlackElo "2526"]
[BlackTeam "GER"]
[WhiteClock "0:00:25"]
[BlackClock "0:00:03"]

1. d4 {[%clk 0:02:59]}  d5 {[%clk 0:02:57]} 2. c4 {[%clk 0:02:59]}  e6 {[%clk 0:02:57]} 3. Nc3 {[%clk 0:02:58]}  c5 {[%clk 0:02:58]} 4. cxd5 {[%clk 0:02:57]}  cxd4 {[%clk 0:02:58]} 5. Qa4+ {[%clk 0:02:55]}  Bd7 {[%clk 0:02:58]} 6. Qxd4 {[%clk 0:02:55]}  exd5 {[%clk 0:02:59]} 7. Qxd5 {[%clk 0:02:38]}  Nf6 {[%clk 0:02:59]} 8. Qb3 {[%clk 0:02:35]}  Na6 {[%clk 0:02:58]} 9. Nf3 {[%clk 0:02:27]}  Nc5 {[%clk 0:02:58]} 10. Qc2 {[%clk 0:02:26]}  Rc8 {[%clk 0:02:52]} 11. Bg5 {[%clk 0:02:24]}  Qb6 {[%clk 0:02:48]} 12. Bxf6 {[%clk 0:02:23]}  Qxf6 {[%clk 0:02:43]} 13. e3 {[%clk 0:02:21]}  Be7 {[%clk 0:02:28]} 14. Bb5 {[%clk 0:02:05]}  Bxb5 {[%clk 0:02:20]} 15. Nxb5 {[%clk 0:02:05]}  O-O {[%clk 0:02:15]} 16. O-O {[%clk 0:01:59]}  a6 {[%clk 0:02:07]} 17. Nbd4 {[%clk 0:01:58]}  b5 {[%clk 0:02:04]} 18. Rac1 {[%clk 0:01:55]}  Bd6 {[%clk 0:02:04]} 19. b3 {[%clk 0:01:47]}  g6 {[%clk 0:01:55]} 20. Rfd1 {[%clk 0:01:42]}  Rc7 {[%clk 0:01:22]} 21. h3 {[%clk 0:01:35]}  Rfc8 {[%clk 0:01:21]} 22. Qb1 {[%clk 0:01:34]}  Qe7 {[%clk 0:01:03]} 23. Ne2 {[%clk 0:01:16]}  b4 {[%clk 0:00:42]} 24. Rc4 {[%clk 0:01:14]}  a5 {[%clk 0:00:36]} 25. Rcd4 {[%clk 0:01:04]}  Rc6 {[%clk 0:00:30]} 26. Nf4 {[%clk 0:01:01]}  Bb8 {[%clk 0:00:24]} 27. Nd5 {[%clk 0:01:00]}  Qf8 {[%clk 0:00:14]} 28. Rc4 {[%clk 0:00:56]}  Ba7 {[%clk 0:00:08]} 29. Nd4 {[%clk 0:00:51]}  Rd6 {[%clk 0:00:06]} 30. Nb5 {[%clk 0:00:50]}  Bb8 {[%clk 0:00:01]} 31. Nxd6 {[%clk 0:00:45]}  Qxd6 {[%clk 0:00:02]} 32. Nf4 {[%clk 0:00:39]}  Qe5 {[%clk 0:00:03]} 33. Rd5 {[%clk 0:00:37]}  Qe7 {[%clk 0:00:03]} 34. Nd3 {[%clk 0:00:29]}  Ba7 {[%clk 0:00:04]} 35. Qc2 {[%clk 0:00:27]}  Rc7 {[%clk 0:00:03]} 36. Nxc5 {[%clk 0:00:25]}  Bxc5 {[%clk 0:00:03]} 37. Rdxc5 {[%clk 0:00:25]}  Rxc5 {[%clk 0:00:03]} 38. Rxc5 {[%clk 0:00:25]} 1-0

[Event "December 12 Early 2023"]
[Site "https://www.chess.com"]
[Date "2023.12.12"]
[Round "9"]
[White "Porozhnyak, Maya"]
[Black "Tikhonov, Viacheslav"]
[Result "0-1"]
[Board "86"]
[TimeControl "180+1"]
[WhiteFideId "34115843"]
[BlackFideId "44196407"]
[WhiteElo "2435"]
[BlackElo "2525"]
[WhiteTeam "RUS"]
[BlackTeam "RUS"]
[WhiteClock "0:00:00"]
[BlackClock "0:00:30"]

1. e4 {[%clk 0:03:00]}  c5 {[%clk 0:02:56]} 2. Nf3 {[%clk 0:02:59]}  g6 {[%clk 0:02:57]} 3. d4 {[%clk 0:02:59]}  cxd4 {[%clk 0:02:57]} 4. c3 {[%clk 0:03:00]}  Bg7 {[%clk 0:02:56]} 5. cxd4 {[%clk 0:03:00]}  d5 {[%clk 0:02:57]} 6. e5 {[%clk 0:03:00]}  a6 {[%clk 0:02:57]} 7. Nc3 {[%clk 0:03:01]}  Nc6 {[%clk 0:02:58]} 8. Be3 {[%clk 0:03:00]}  Bg4 {[%clk 0:02:55]} 9. Be2 {[%clk 0:02:59]}  e6 {[%clk 0:02:55]} 10. O-O {[%clk 0:02:59]}  Nge7 {[%clk 0:02:56]} 11. Rc1 {[%clk 0:02:45]}  O-O {[%clk 0:02:55]} 12. h3 {[%clk 0:02:45]}  Bxf3 {[%clk 0:02:55]} 13. Bxf3 {[%clk 0:02:46]}  b5 {[%clk 0:02:53]} 14. a3 {[%clk 0:02:43]}  Rc8 {[%clk 0:02:53]} 15. b4 {[%clk 0:02:38]}  Qb6 {[%clk 0:02:51]} 16. Ne2 {[%clk 0:02:12]}  a5 {[%clk 0:02:39]} 17. Qb3 {[%clk 0:02:06]}  axb4 {[%clk 0:02:29]} 18. axb4 {[%clk 0:02:07]}  Ra8 {[%clk 0:02:20]} 19. Ra1 {[%clk 0:02:01]}  Ra6 {[%clk 0:02:19]} 20. Rxa6 {[%clk 0:01:49]}  Qxa6 {[%clk 0:02:20]} 21. Nc3 {[%clk 0:01:49]}  Nf5 {[%clk 0:02:09]} 22. Rd1 {[%clk 0:01:34]}  Qb6 {[%clk 0:01:49]} 23. Ne2 {[%clk 0:01:26]}  Ra8 {[%clk 0:01:43]} 24. g4 {[%clk 0:01:20]}  Nxe3 {[%clk 0:01:37]} 25. fxe3 {[%clk 0:01:21]}  Ra4 {[%clk 0:01:37]} 26. Rc1 {[%clk 0:01:11]}  Bf8 {[%clk 0:01:24]} 27. Qc3 {[%clk 0:00:46]}  Nxb4 {[%clk 0:01:24]} 28. Qc8 {[%clk 0:00:26]}  Nd3 {[%clk 0:01:09]} 29. Rc6 {[%clk 0:00:20]}  Qa5 {[%clk 0:00:52]} 30. Nc3 {[%clk 0:00:18]}  Rc4 {[%clk 0:00:42]} 31. Nxd5 {[%clk 0:00:01]}  Qe1+ {[%clk 0:00:30]} 32. Kg2 {[%clk 0:00:00]}  Qf2+ {[%clk 0:00:30]} 0-1

[Event "December 12 Early 2023"]
[Site "https://www.chess.com"]
[Date "2023.12.12"]
[Round "9"]
[White "Womacka, Mathias"]
[Black "Ovezdurdyyeva, Jemal"]
[Result "1-0"]
[Board "88"]
[TimeControl "180+1"]
[WhiteFideId "4611390"]
[BlackFideId "14001888"]
[WhiteElo "2521"]
[BlackElo "2426"]
[WhiteTeam "GER"]
[BlackTeam "TKM"]
[WhiteClock "0:02:13"]
[BlackClock "0:01:41"]

1. e4 {[%clk 0:03:00]}  d6 {[%clk 0:02:59]} 2. d4 {[%clk 0:02:59]}  Nf6 {[%clk 0:03:00]} 3. Nc3 {[%clk 0:02:59]}  g6 {[%clk 0:03:00]} 4. f4 {[%clk 0:02:59]}  Bg7 {[%clk 0:03:00]} 5. Nf3 {[%clk 0:02:59]}  c6 {[%clk 0:03:00]} 6. Bd3 {[%clk 0:02:58]}  b5 {[%clk 0:03:00]} 7. e5 {[%clk 0:02:57]}  dxe5 {[%clk 0:03:00]} 8. dxe5 {[%clk 0:02:46]}  Nd5 {[%clk 0:02:57]} 9. a4 {[%clk 0:02:17]}  Nxc3 {[%clk 0:02:24]} 10. bxc3 {[%clk 0:02:18]}  O-O {[%clk 0:02:24]} 11. axb5 {[%clk 0:02:17]}  cxb5 {[%clk 0:01:41]} 12. Be4 {[%clk 0:02:13]} 1-0

[Event "December 12 Early 2023"]
[Site "https://www.chess.com"]
[Date "2023.12.12"]
[Round "9"]
[White "Erzhanov, Arman"]
[Black "Matveeva, Olga"]
[Result "1-0"]
[Board "89"]
[TimeControl "180+1"]
[WhiteFideId "4138821"]
[BlackFideId "24107018"]
[WhiteElo "2519"]
[BlackElo "2421"]
[WhiteTeam "KAZ"]
[BlackTeam "RUS"]
[WhiteClock "0:00:13"]
[BlackClock "0:00:13"]

1. e4 {[%clk 0:02:59]}  c6 {[%clk 0:03:00]} 2. d4 {[%clk 0:02:58]}  d5 {[%clk 0:03:00]} 3. exd5 {[%clk 0:02:59]}  cxd5 {[%clk 0:03:01]} 4. Bd3 {[%clk 0:03:00]}  Nc6 {[%clk 0:03:00]} 5. c3 {[%clk 0:03:00]}  Nf6 {[%clk 0:03:00]} 6. h3 {[%clk 0:03:00]}  e5 {[%clk 0:02:58]} 7. dxe5 {[%clk 0:03:01]}  Nxe5 {[%clk 0:02:58]} 8. Nf3 {[%clk 0:03:02]}  Nxd3+ {[%clk 0:02:58]} 9. Qxd3 {[%clk 0:03:03]}  Be7 {[%clk 0:02:56]} 10. O-O {[%clk 0:03:03]}  O-O {[%clk 0:02:57]} 11. Bg5 {[%clk 0:03:04]}  h6 {[%clk 0:02:53]} 12. Bh4 {[%clk 0:03:04]}  Be6 {[%clk 0:02:49]} 13. Nbd2 {[%clk 0:03:04]}  Re8 {[%clk 0:02:46]} 14. Rfe1 {[%clk 0:03:04]}  Qb6 {[%clk 0:02:34]} 15. Nb3 {[%clk 0:02:44]}  Rad8 {[%clk 0:02:31]} 16. Qd4 {[%clk 0:02:42]}  Qb5 {[%clk 0:02:03]} 17. Qxa7 {[%clk 0:02:12]}  Ra8 {[%clk 0:01:57]} 18. Qe3 {[%clk 0:02:07]}  Ne4 {[%clk 0:01:54]} 19. Bxe7 {[%clk 0:02:06]}  Rxe7 {[%clk 0:01:55]} 20. Nfd4 {[%clk 0:02:07]}  Qc4 {[%clk 0:01:47]} 21. f3 {[%clk 0:02:05]}  Nf6 {[%clk 0:01:38]} 22. Nf5 {[%clk 0:02:03]}  Ree8 {[%clk 0:01:29]} 23. Nd6 {[%clk 0:02:01]}  Qa6 {[%clk 0:01:17]} 24. Nxe8 {[%clk 0:02:00]}  Rxe8 {[%clk 0:01:18]} 25. Nc5 {[%clk 0:01:59]}  Qb5 {[%clk 0:01:16]} 26. Nxe6 {[%clk 0:01:57]}  Rxe6 {[%clk 0:01:17]} 27. Qd2 {[%clk 0:01:58]}  Qc5+ {[%clk 0:01:14]} 28. Qd4 {[%clk 0:01:57]}  Qb5 {[%clk 0:01:11]} 29. Rxe6 {[%clk 0:01:56]}  fxe6 {[%clk 0:01:12]} 30. b3 {[%clk 0:01:51]}  Qe2 {[%clk 0:01:11]} 31. Qf2 {[%clk 0:01:51]}  Qd3 {[%clk 0:01:10]} 32. Rc1 {[%clk 0:01:41]}  Nh5 {[%clk 0:01:07]} 33. Qd4 {[%clk 0:01:29]}  Qe2 {[%clk 0:01:03]} 34. Qf2 {[%clk 0:01:07]}  Qd3 {[%clk 0:01:02]} 35. g3 {[%clk 0:01:04]}  Nxg3 {[%clk 0:00:57]} 36. Re1 {[%clk 0:00:55]}  Qg6 {[%clk 0:00:45]} 37. Kh2 {[%clk 0:00:53]}  h5 {[%clk 0:00:43]} 38. h4 {[%clk 0:00:48]}  Nf5 {[%clk 0:00:42]} 39. Rg1 {[%clk 0:00:45]}  Qf6 {[%clk 0:00:42]} 40. Rg5 {[%clk 0:00:43]}  Qe5+ {[%clk 0:00:40]} 41. Kh3 {[%clk 0:00:42]}  Qxc3 {[%clk 0:00:37]} 42. Rxh5 {[%clk 0:00:42]}  Qc1 {[%clk 0:00:37]} 43. Rg5 {[%clk 0:00:40]}  Qh1+ {[%clk 0:00:36]} 44. Kg4 {[%clk 0:00:38]}  Kf7 {[%clk 0:00:29]} 45. Kf4 {[%clk 0:00:29]}  Qc1+ {[%clk 0:00:22]} 46. Kg4 {[%clk 0:00:28]}  Qh1 {[%clk 0:00:19]} 47. Rxf5+ {[%clk 0:00:23]}  exf5+ {[%clk 0:00:19]} 48. Kxf5 {[%clk 0:00:24]}  Qh3+ {[%clk 0:00:18]} 49. Ke5 {[%clk 0:00:24]}  Qe6+ {[%clk 0:00:18]} 50. Kd4 {[%clk 0:00:24]}  Kf6 {[%clk 0:00:18]} 51. Qg3 {[%clk 0:00:22]}  Qc6 {[%clk 0:00:17]} 52. Qe5+ {[%clk 0:00:22]}  Kg6 {[%clk 0:00:17]} 53. Qxd5 {[%clk 0:00:20]}  Qc1 {[%clk 0:00:16]} 54. Qe4+ {[%clk 0:00:20]}  Kf7 {[%clk 0:00:15]} 55. Qxb7+ {[%clk 0:00:18]}  Kf6 {[%clk 0:00:16]} 56. Qe4 {[%clk 0:00:14]}  Qb1 {[%clk 0:00:13]} 57. Qxb1 {[%clk 0:00:13]} 1-0

[Event "December 12 Early 2023"]
[Site "https://www.chess.com"]
[Date "2023.12.12"]
[Round "9"]
[White "Topalov, Aleksandar"]
[Black "Grutter, Tim"]
[Result "1-0"]
[Board "90"]
[TimeControl "180+1"]
[WhiteFideId "925659"]
[BlackFideId "1057472"]
[WhiteElo "2384"]
[BlackElo "2514"]
[WhiteTeam "SRB"]
[BlackTeam "NED"]
[WhiteClock "0:00:15"]
[BlackClock "0:00:00"]

1. b3 {[%clk 0:03:00]}  d6 {[%clk 0:03:00]} 2. Bb2 {[%clk 0:03:00]}  e5 {[%clk 0:03:01]} 3. d4 {[%clk 0:02:58]}  e4 {[%clk 0:02:59]} 4. d5 {[%clk 0:02:58]}  f5 {[%clk 0:02:58]} 5. e3 {[%clk 0:02:58]}  Nf6 {[%clk 0:02:57]} 6. Ne2 {[%clk 0:02:59]}  g6 {[%clk 0:02:56]} 7. Nf4 {[%clk 0:02:58]}  Bg7 {[%clk 0:02:57]} 8. h4 {[%clk 0:02:54]}  O-O {[%clk 0:02:52]} 9. Nc3 {[%clk 0:02:54]}  Ng4 {[%clk 0:02:42]} 10. Qd2 {[%clk 0:02:43]}  Be5 {[%clk 0:02:36]} 11. O-O-O {[%clk 0:02:35]}  Qf6 {[%clk 0:02:36]} 12. f3 {[%clk 0:02:27]}  Nh6 {[%clk 0:02:08]} 13. Kb1 {[%clk 0:02:27]}  Qg7 {[%clk 0:01:57]} 14. Be2 {[%clk 0:02:12]}  a5 {[%clk 0:01:53]} 15. a4 {[%clk 0:02:10]}  Na6 {[%clk 0:01:47]} 16. Rdg1 {[%clk 0:01:57]}  Nc5 {[%clk 0:01:43]} 17. Bc4 {[%clk 0:00:57]}  Kh8 {[%clk 0:01:40]} 18. Nd1 {[%clk 0:00:43]}  Bd7 {[%clk 0:01:30]} 19. Bd4 {[%clk 0:00:32]}  Rfb8 {[%clk 0:01:07]} 20. Nc3 {[%clk 0:00:31]}  Re8 {[%clk 0:00:41]} 21. Re1 {[%clk 0:00:28]}  Nf7 {[%clk 0:00:38]} 22. h5 {[%clk 0:00:25]}  g5 {[%clk 0:00:36]} 23. h6 {[%clk 0:00:25]}  Qf6 {[%clk 0:00:30]} 24. Nh5 {[%clk 0:00:25]}  Qxh6 {[%clk 0:00:26]} 25. f4 {[%clk 0:00:25]}  gxf4 {[%clk 0:00:15]} 26. exf4 {[%clk 0:00:25]}  Rg8 {[%clk 0:00:03]} 27. Rd1 {[%clk 0:00:22]}  e3 {[%clk 0:00:02]} 28. Qxe3 {[%clk 0:00:20]}  Rae8 {[%clk 0:00:02]} 29. fxe5 {[%clk 0:00:19]}  Qxe3 {[%clk 0:00:03]} 30. Bxe3 {[%clk 0:00:19]}  Nxe5 {[%clk 0:00:02]} 31. Nf6 {[%clk 0:00:17]}  Re7 {[%clk 0:00:02]} 32. Nxg8 {[%clk 0:00:16]}  Kxg8 {[%clk 0:00:03]} 33. Bxc5 {[%clk 0:00:15]}  dxc5 {[%clk 0:00:03]} 34. Rde1 {[%clk 0:00:15]}  Kf7 {[%clk 0:00:00]} 35. d6+ {[%clk 0:00:15]} 1-0

[Event "December 12 Early 2023"]
[Site "https://www.chess.com"]
[Date "2023.12.12"]
[Round "9"]
[White "Reprintsev, Alexander"]
[Black "Donskov, Anatoly"]
[Result "1-0"]
[Board "91"]
[TimeControl "180+1"]
[WhiteFideId "14100541"]
[BlackFideId "24143413"]
[WhiteElo "2511"]
[BlackElo "2413"]
[WhiteTeam "UKR"]
[BlackTeam "RUS"]
[WhiteClock "0:00:23"]
[BlackClock "0:00:00"]

1. e4 {[%clk 0:02:59]}  c5 {[%clk 0:02:57]} 2. b3 {[%clk 0:02:59]}  e6 {[%clk 0:02:56]} 3. Nf3 {[%clk 0:02:58]}  a6 {[%clk 0:02:56]} 4. Bb2 {[%clk 0:02:57]}  d5 {[%clk 0:02:56]} 5. exd5 {[%clk 0:02:56]}  exd5 {[%clk 0:02:57]} 6. Bd3 {[%clk 0:02:50]}  h6 {[%clk 0:02:35]} 7. O-O {[%clk 0:02:49]}  Be6 {[%clk 0:02:32]} 8. Re1 {[%clk 0:02:49]}  Ne7 {[%clk 0:02:07]} 9. Nh4 {[%clk 0:02:33]}  Qd7 {[%clk 0:02:03]} 10. Qf3 {[%clk 0:02:33]}  Nbc6 {[%clk 0:01:58]} 11. Nf5 {[%clk 0:02:30]}  d4 {[%clk 0:01:53]} 12. c3 {[%clk 0:02:16]}  O-O-O {[%clk 0:01:29]} 13. Nxe7+ {[%clk 0:02:16]}  Bxe7 {[%clk 0:01:30]} 14. cxd4 {[%clk 0:02:13]}  Nxd4 {[%clk 0:01:29]} 15. Qg3 {[%clk 0:01:58]}  Bf6 {[%clk 0:01:12]} 16. Nc3 {[%clk 0:01:47]}  Nxb3 {[%clk 0:01:01]} 17. Bb5 {[%clk 0:01:45]}  Qxd2 {[%clk 0:00:57]} 18. axb3 {[%clk 0:01:41]}  Qxb2 {[%clk 0:00:51]} 19. Na4 {[%clk 0:01:39]}  Be5 {[%clk 0:00:29]} 20. Qxe5 {[%clk 0:01:12]}  Qxe5 {[%clk 0:00:28]} 21. Rxe5 {[%clk 0:01:12]}  axb5 {[%clk 0:00:28]} 22. Rxc5+ {[%clk 0:01:11]}  Kb8 {[%clk 0:00:26]} 23. Rxb5 {[%clk 0:01:11]}  Bd7 {[%clk 0:00:21]} 24. Rb4 {[%clk 0:01:11]}  Bc6 {[%clk 0:00:18]} 25. Nb6 {[%clk 0:01:01]}  Kc7 {[%clk 0:00:15]} 26. Nc4 {[%clk 0:01:01]}  Rd4 {[%clk 0:00:13]} 27. h3 {[%clk 0:00:57]}  Rhd8 {[%clk 0:00:13]} 28. Kh2 {[%clk 0:00:56]}  Re8 {[%clk 0:00:03]} 29. Ra7 {[%clk 0:00:48]}  Re2 {[%clk 0:00:02]} 30. Kg3 {[%clk 0:00:46]}  h5 {[%clk 0:00:00]} 31. f3 {[%clk 0:00:23]} 1-0

[Event "December 12 Early 2023"]
[Site "https://www.chess.com"]
[Date "2023.12.12"]
[Round "9"]
[White "Silvestre, Christian"]
[Black "Gavrilov, Maxim"]
[Result "0-1"]
[Board "92"]
[TimeControl "180+1"]
[WhiteFideId "30956269"]
[BlackFideId "24271454"]
[WhiteElo "2349"]
[BlackElo "2510"]
[WhiteTeam "USA"]
[BlackTeam "RUS"]
[WhiteClock "0:00:44"]
[BlackClock "0:00:28"]

1. e4 {[%clk 0:03:00]}  c5 {[%clk 0:02:58]} 2. c3 {[%clk 0:03:01]}  d5 {[%clk 0:02:58]} 3. exd5 {[%clk 0:03:00]}  Qxd5 {[%clk 0:02:58]} 4. d4 {[%clk 0:03:00]}  Nc6 {[%clk 0:02:57]} 5. Nf3 {[%clk 0:02:57]}  Bg4 {[%clk 0:02:57]} 6. Be2 {[%clk 0:02:56]}  Nf6 {[%clk 0:02:56]} 7. c4 {[%clk 0:02:52]}  Qd7 {[%clk 0:02:31]} 8. d5 {[%clk 0:02:50]}  Bxf3 {[%clk 0:02:27]} 9. Bxf3 {[%clk 0:02:44]}  Nd4 {[%clk 0:02:27]} 10. O-O {[%clk 0:02:44]}  g6 {[%clk 0:02:18]} 11. Be3 {[%clk 0:02:36]}  Nxf3+ {[%clk 0:02:11]} 12. Qxf3 {[%clk 0:02:34]}  Rc8 {[%clk 0:02:06]} 13. Nc3 {[%clk 0:02:25]}  Bg7 {[%clk 0:02:04]} 14. Rfe1 {[%clk 0:02:23]}  O-O {[%clk 0:02:02]} 15. Rad1 {[%clk 0:02:21]}  Rfe8 {[%clk 0:01:50]} 16. Bg5 {[%clk 0:02:16]}  h6 {[%clk 0:01:42]} 17. Bh4 {[%clk 0:02:15]}  a6 {[%clk 0:01:35]} 18. a4 {[%clk 0:02:12]}  Nh7 {[%clk 0:01:29]} 19. b3 {[%clk 0:02:03]}  Nf8 {[%clk 0:01:23]} 20. Ne4 {[%clk 0:01:59]}  f5 {[%clk 0:01:17]} 21. Nd2 {[%clk 0:01:40]}  g5 {[%clk 0:01:15]} 22. Bg3 {[%clk 0:01:39]}  f4 {[%clk 0:01:15]} 23. Bxf4 {[%clk 0:01:39]}  gxf4 {[%clk 0:01:16]} 24. Qxf4 {[%clk 0:01:40]}  Ng6 {[%clk 0:01:12]} 25. Qe4 {[%clk 0:01:37]}  Qd6 {[%clk 0:01:07]} 26. g3 {[%clk 0:01:36]}  Rf8 {[%clk 0:01:04]} 27. f4 {[%clk 0:01:36]}  Rf7 {[%clk 0:01:02]} 28. Nf3 {[%clk 0:01:32]}  Rcf8 {[%clk 0:00:58]} 29. Ne5 {[%clk 0:01:29]}  Nxe5 {[%clk 0:00:54]} 30. fxe5 {[%clk 0:01:30]}  Bxe5 {[%clk 0:00:44]} 31. Qxe5 {[%clk 0:01:24]}  Rf1+ {[%clk 0:00:42]} 32. Kg2 {[%clk 0:01:20]}  Qxe5 {[%clk 0:00:38]} 33. Rxe5 {[%clk 0:01:18]}  R8f2+ {[%clk 0:00:34]} 34. Kh3 {[%clk 0:01:17]}  Rxd1 {[%clk 0:00:35]} 35. Rxe7 {[%clk 0:01:17]}  Rf7 {[%clk 0:00:34]} 36. Re8+ {[%clk 0:01:16]}  Kg7 {[%clk 0:00:34]} 37. Rc8 {[%clk 0:01:17]}  Rd3 {[%clk 0:00:31]} 38. Rxc5 {[%clk 0:01:16]}  Rxb3 {[%clk 0:00:32]} 39. d6 {[%clk 0:01:17]}  Rd3 {[%clk 0:00:29]} 40. Rc7 {[%clk 0:01:09]}  Rxd6 {[%clk 0:00:27]} 41. Rxf7+ {[%clk 0:01:08]}  Kxf7 {[%clk 0:00:28]} 42. c5 {[%clk 0:00:44]}  Rd4 {[%clk 0:00:28]} 0-1